bitfinex-derivatives/quotes_BNBF0:USTF0_20250101
["timestamp","ask_amount","ask_price","bid_price","bid_amount"]
[1735762302259,0.97,708.86,708.09,1.05569966]
[1735762303361,0.97,708.86,708.1,1.05569966]
[1735762304561,0.97,708.86,708.09,1.05569966]
[1735762306458,0.97,708.86,708.1,1.05569966]
[1735762308763,0.97,708.86,708.18,1.05569966]
[1735762309959,0.97,708.86,708.11,1.05569966]
[1735762311163,0.97,708.86,708.12,1.05569966]
[1735762313464,0.97,708.86,707.78,0.72797366]
[1735762313465,0.97,708.86,708.09,1.05569966]
[1735762313765,1.47418066,708.87,708.09,1.05569966]
[1735762314565,1.47418066,708.87,707.53,1.26766104]
[1735762314566,1.47418066,708.87,708.08,1.05569966]
[1735762314765,0.919,708.86,708.08,1.05569966]
[1735762315564,0.919,708.86,708.06,1.05569966]
[1735762316764,0.919,708.86,708.02,1.05569966]
[1735762317566,0.919,708.86,707.95,1.05569966]
[1735762318364,1.20114315,708.86,707.95,1.05569966]
[1735762319964,1.20114315,708.86,707.24,1.26766104]
[1735762319965,1.20114315,708.86,707.61,1.05569966]
[1735762321164,1.20114315,708.86,707.57,1.05569966]
[1735762322666,1.20114315,708.86,707.81,1.05569966]
[1735762322869,0.2598905,708.85,707.81,1.05569966]
[1735762323767,0.2598905,708.85,707.86,1.05569966]
[1735762324868,0.2598905,708.85,707.87,1.05569966]
[1735762326069,0.2598905,708.85,707.86,1.05569966]
[1735762326272,1.20114315,708.86,707.86,1.05569966]
[1735762326568,0.25989193,708.85,707.86,1.05569966]
[1735762328669,0.25989193,708.85,707.83,1.05569966]
[1735762328967,0.25989832,708.84,707.83,1.05569966]
[1735762329163,0.25244165,708.83,707.83,1.05569966]
[1735762329369,1.20114315,708.86,707.83,1.05569966]
[1735762329769,1.20114315,708.86,707.4,1.55038651]
[1735762329770,1.20114315,708.86,707.82,1.05569966]
[1735762330069,0.25988638,708.85,707.82,1.05569966]
[1735762331562,0.25988761,708.84,707.82,1.05569966]
[1735762331768,0.25988761,708.83,707.81,1.05569966]
[1735762331968,1.20114315,708.86,707.81,1.05569966]
[1735762332569,0.25988647,708.85,707.81,1.05569966]
[1735762332873,1.20114315,708.86,707.81,1.05569966]
[1735762333169,1.20114315,708.86,707.79,1.05569966]
[1735762333869,0.25988675,708.85,707.79,1.05569966]
[1735762334069,1.20114315,708.86,707.79,1.05569966]
[1735762334569,0.25989186,708.85,707.79,1.05569966]
[1735762335271,0.25989186,708.85,707.76,1.05569966]
[1735762336966,1.27889656,708.84,707.76,1.05569966]
[1735762337272,0.25989656,708.83,707.76,1.05569966]
[1735762338475,0.25989656,708.83,707.77,1.05569966]
[1735762339675,0.25989656,708.83,707.4,0.28272547]
[1735762339676,0.25989656,708.83,707.76,1.05569966]
[1735762340266,1.019,708.84,707.76,1.05569966]
[1735762341873,1.019,708.84,707.74,1.05569966]
[1735762341874,0.25989692,708.83,707.74,1.05569966]
[1735762342575,0.25989692,708.83,707.78,1.05569966]
[1735762343772,0.25989692,708.83,707.8,1.05569966]
[1735762345076,1.019,708.84,707.81,1.05569966]
[1735762345276,0.25989258,708.83,707.81,1.05569966]
[1735762346372,0.25989258,708.83,707.83,1.05569966]
[1735762347076,1.019,708.84,707.83,1.05569966]
[1735762347475,1.019,708.84,707.85,1.05569966]
[1735762347975,0.25989087,708.83,707.85,1.05569966]
[1735762348271,1.019,708.84,707.86,1.05569966]
[1735762348478,0.25989141,708.83,707.86,1.05569966]
[1735762349574,0.25989141,708.83,707.88,1.05569966]
[1735762350676,0.25989141,708.83,707.89,1.05569966]
[1735762351774,0.25989141,708.83,707.96,1.05569966]
[1735762353077,1.05968216,708.8,708.02,1.05569966]
[1735762353375,0.25989282,708.79,708.02,1.05569966]
[1735762353778,1.73428687,708.79,708.02,1.05569966]
[1735762354079,0.25989282,708.78,708.02,1.05569966]
[1735762354279,2.53407621,708.79,708.02,1.05569966]
[1735762355382,1.47439405,708.79,708.06,1.05569966]
[1735762357274,0.25987947,708.78,708.06,1.05569966]
[1735762357482,1.47439405,708.79,708.05,1.05569966]
[1735762358174,0.937,708.78,708.05,1.05569966]
[1735762358378,0.937,708.78,707.99,1.05569966]
[1735762361686,0.937,708.78,707.96,1.05569966]
[1735762362684,0.937,708.78,707.95,1.05569966]
[1735762363486,0.937,708.78,707.94,1.05569966]
[1735762366591,0.937,708.78,707.7,1.0563842]
[1735762366592,0.937,708.78,707.95,1.05569966]
[1735762368791,0.937,708.78,707.7,1.0563842]
[1735762368792,0.937,708.78,707.96,1.05569966]
[1735762370899,0.937,708.78,707.94,1.05569966]
[1735762371795,0.937,708.78,708.02,1.05569966]
[1735762373999,0.937,708.78,707.91,1.05569966]
[1735762375300,1.47439405,708.79,707.91,1.05569966]
[1735762376398,1.025,708.78,707.91,1.05569966]
[1735762379202,1.025,708.78,707.89,1.05569966]
[1735762380502,1.025,708.78,707.9,1.05569966]
[1735762381806,1.025,708.78,707.94,1.05569966]
[1735762384205,1.025,708.78,708.01,1.05569966]
[1735762385409,1.025,708.78,708.0,1.05569966]
[1735762387509,1.47439405,708.79,707.99,1.05569966]
[1735762388609,0.805,708.78,708.0,1.05569966]
[1735762390211,0.805,708.78,708.01,1.05569966]
[1735762391510,0.805,708.78,707.8,1.0563842]
[1735762391511,0.805,708.78,708.06,1.05569966]
[1735762392614,0.805,708.78,708.07,1.05569966]
[1735762393917,0.805,708.78,707.53,2.15678442]
[1735762393918,0.805,708.78,708.06,1.05569966]
[1735762395516,0.805,708.78,708.08,1.05569966]
[1735762399920,0.805,708.78,708.07,1.05569966]
[1735762401217,0.805,708.78,707.97,1.05569966]
[1735762404221,0.805,708.78,707.96,1.05569966]
[1735762406719,0.805,708.78,707.95,1.05569966]
[1735762407623,0.805,708.78,707.94,1.05569966]
[1735762408827,0.805,708.78,707.95,1.05569966]
[1735762410122,0.805,708.78,707.97,1.05569966]
[1735762412025,0.805,708.78,708.01,1.05569966]
[1735762413028,0.805,708.78,708.02,1.05569966]
[1735762414125,0.805,708.78,708.04,1.05569966]
[1735762415330,0.805,708.78,708.03,1.05569966]
[1735762416619,1.47439405,708.79,708.03,1.05569966]
[1735762417824,1.025,708.78,708.03,1.05569966]
[1735762420324,1.025,708.78,708.04,1.05569966]
[1735762421527,1.025,708.78,707.79,1.0563842]
[1735762421528,1.025,708.78,708.11,1.05569966]
[1735762422829,1.025,708.78,708.16,1.05569966]
[1735762423933,1.025,708.78,708.11,1.05569966]
[1735762426135,1.025,708.78,708.12,1.05569966]
[1735762429638,1.025,708.78,708.13,1.05569966]
[1735762430435,1.025,708.78,707.64,1.26766104]
[1735762430436,1.025,708.78,708.14,1.05569966]
[1735762432734,1.025,708.78,708.16,1.05569966]
[1735762433640,1.025,708.78,708.18,1.05569966]
[1735762434534,1.025,708.78,708.2,1.05569966]
[1735762435539,1.025,708.78,708.21,1.05569966]
[1735762436740,1.025,708.78,708.25,1.05569966]
[1735762436935,1.47439405,708.79,708.25,1.05569966]
[1735762437841,1.47439405,708.79,708.24,1.05569966]
[1735762438036,1.006,708.78,708.24,1.05569966]
[1735762440441,1.006,708.78,708.23,1.05569966]
[1735762441545,1.006,708.78,708.27,1.05569966]
[1735762442645,1.006,708.78,708.28,1.05569966]
[1735762443744,1.006,708.78,708.27,1.05569966]
[1735762444743,1.006,708.78,708.23,1.05569966]
[1735762445646,1.006,708.78,708.22,1.05569966]
[1735762447045,1.006,708.78,708.02,1.0563842]
[1735762447046,1.006,708.78,708.2,1.05569966]
[1735762448142,1.006,708.78,708.19,1.05569966]
[1735762448955,1.006,708.78,708.2,1.05569966]
[1735762450452,1.006,708.78,707.46,2.88392245]
[1735762450453,1.006,708.78,708.18,1.05569966]
[1735762451751,1.006,708.78,707.63,0.72713803]
[1735762451752,1.006,708.78,708.06,1.05569966]
[1735762452858,1.006,708.78,708.04,1.05569966]
[1735762455155,1.006,708.78,708.03,1.05569966]
[1735762456460,1.006,708.78,707.41,0.72713803]
[1735762456461,1.006,708.78,708.02,1.05569966]
[1735762458164,1.006,708.78,707.41,0.72713803]
[1735762458165,1.006,708.78,707.99,1.05569966]
[1735762458962,1.006,708.78,707.96,1.05569966]
[1735762461564,1.006,708.78,707.95,1.05569966]
[1735762462464,1.006,708.78,707.91,1.05569966]
[1735762463566,1.006,708.78,707.94,1.05569966]
[1735762465569,1.006,708.78,707.96,1.05569966]
[1735762466273,1.006,708.78,707.93,1.05569966]
[1735762467172,1.47439405,708.79,707.93,1.05569966]
[1735762467470,1.47439405,708.79,707.94,1.05569966]
[1735762468170,1.025,708.78,707.94,1.05569966]
[1735762468773,1.025,708.78,707.97,1.05569966]
[1735762469771,1.025,708.78,707.99,1.05569966]
[1735762472173,1.025,708.78,707.81,1.0563842]
[1735762472174,1.025,708.78,708.0,1.05569966]
[1735762473473,1.025,708.78,707.99,1.05569966]
[1735762475380,1.025,708.78,708.0,1.05569966]
[1735762476776,1.025,708.78,707.81,1.0563842]
[1735762476777,1.025,708.78,707.99,1.05569966]
[1735762478875,1.025,708.78,708.0,1.05569966]
[1735762479778,1.025,708.78,708.01,1.05569966]
[1735762480879,1.025,708.78,708.02,1.05569966]
[1735762482079,1.025,708.78,708.03,1.05569966]
[1735762483076,1.025,708.78,708.04,1.05569966]
[1735762485883,1.025,708.78,707.77,1.0563842]
[1735762485884,1.025,708.78,708.05,1.05569966]
[1735762486781,1.025,708.78,707.52,2.15678442]
[1735762486782,1.025,708.78,708.04,1.05569966]
[1735762488183,1.025,708.78,708.05,1.05569966]
[1735762489381,1.025,708.78,708.01,1.05569966]
[1735762491584,1.025,708.78,708.0,1.05569966]
[1735762492677,1.025,708.78,708.01,1.05569966]
[1735762495987,1.025,708.78,708.03,1.05569966]
[1735762496891,1.025,708.78,708.02,1.05569966]
[1735762497291,1.47439405,708.79,708.02,1.05569966]
[1735762497991,1.47439405,708.79,708.03,1.05569966]
[1735762498695,0.992,708.78,708.03,1.05569966]
[1735762499293,0.992,708.78,708.13,1.05569966]
[1735762500295,0.992,708.78,708.12,1.05569966]
[1735762501790,0.992,708.78,708.14,1.05569966]
[1735762501992,1.4742275,708.77,708.14,1.05569966]
[1735762503595,1.4742275,708.77,708.15,1.05569966]
[1735762504402,1.4742275,708.77,708.04,1.05569966]
[1735762505596,1.4742275,708.77,708.12,1.05569966]
[1735762506798,1.4742275,708.77,708.08,1.05569966]
[1735762508694,1.108,708.76,708.08,1.05569966]
[1735762509397,1.108,708.76,708.05,1.05569966]
[1735762510600,1.108,708.76,708.04,1.05569966]
[1735762511704,1.108,708.76,708.03,1.05569966]
[1735762512700,1.108,708.76,708.02,1.05569966]
[1735762513700,1.108,708.76,708.03,1.05569966]
[1735762515301,1.108,708.76,707.48,1.26766104]
[1735762515302,1.108,708.76,708.07,1.05569966]
[1735762516204,1.108,708.76,708.05,1.05569966]
[1735762517304,1.108,708.76,708.04,1.05569966]
[1735762518311,1.108,708.76,708.07,1.05569966]
[1735762519717,1.028,708.75,708.07,1.05569966]
[1735762520515,1.028,708.75,708.06,1.05569966]
[1735762524217,1.028,708.75,708.02,1.05569966]
[1735762525421,1.028,708.75,708.04,1.05569966]
[1735762525813,1.037,708.74,708.04,1.05569966]
[1735762529822,1.037,708.74,708.06,1.05569966]
[1735762530920,1.037,708.74,708.08,1.05569966]
[1735762532120,1.037,708.74,708.07,1.05569966]
[1735762532824,0.783,708.73,708.07,1.05569966]
[1735762533122,0.783,708.73,708.08,1.05569966]
[1735762533918,0.783,708.73,708.19,1.05569966]
[1735762534921,0.783,708.73,708.18,1.05569966]
[1735762537228,0.783,708.73,708.2,1.05569966]
[1735762539423,0.783,708.73,708.23,1.05569966]
[1735762540625,0.783,708.73,708.22,1.05569966]
[1735762541429,0.783,708.73,708.19,1.05569966]
[1735762543429,0.783,708.73,708.17,1.05569966]
[1735762544632,0.783,708.73,707.52,1.26766104]
[1735762544633,0.783,708.73,708.04,1.05569966]
[1735762546131,0.783,708.73,708.08,1.05569966]
[1735762547134,0.783,708.73,708.15,1.05569966]
[1735762548229,0.783,708.73,708.14,1.05569966]
[1735762549630,0.783,708.73,708.21,1.05569966]
[1735762550632,0.783,708.73,708.09,1.05569966]
[1735762551035,1.038,708.72,708.09,1.05569966]
[1735762551635,1.038,708.72,707.32,2.15678442]
[1735762551636,1.038,708.72,708.1,1.05569966]
[1735762552532,1.038,708.72,708.09,1.05569966]
[1735762553730,1.038,708.72,708.11,1.05569966]
[1735762555033,1.038,708.72,708.19,1.05569966]
[1735762555939,1.038,708.72,708.21,1.05569966]
[1735762557038,0.902,708.71,708.21,1.05569966]
[1735762557439,0.902,708.71,707.73,1.26766104]
[1735762557440,0.902,708.71,708.23,1.05569966]
[1735762561641,0.902,708.71,708.25,1.05569966]
[1735762564040,0.902,708.71,708.27,1.05569966]
[1735762565133,0.787,708.7,708.21,1.05569966]
[1735762566137,0.787,708.7,708.22,1.05569966]
[1735762567041,0.787,708.7,707.78,1.26766104]
[1735762567042,0.787,708.7,708.2,1.05569966]
[1735762568037,0.787,708.7,708.19,1.05569966]
[1735762569243,0.787,708.7,707.74,1.26766104]
[1735762569244,0.787,708.7,708.18,1.05569966]
[1735762571745,0.787,708.7,707.91,0.72743191]
[1735762571746,0.787,708.7,708.22,1.05569966]
[1735762573147,0.787,708.7,708.21,1.05569966]
[1735762574447,0.787,708.7,708.23,1.05569966]
[1735762575546,0.787,708.7,707.91,0.72743191]
[1735762575547,0.787,708.7,708.21,1.05569966]
[1735762577447,0.787,708.7,708.16,1.05569966]
[1735762578742,0.787,708.7,708.19,1.05569966]
[1735762579950,0.787,708.7,707.98,1.05569966]
[1735762580951,0.787,708.7,707.94,1.05569966]
[1735762581754,0.787,708.7,707.93,1.05569966]
[1735762582456,0.916,708.69,707.93,1.05569966]
[1735762582955,0.916,708.69,707.96,1.05569966]
[1735762584356,0.916,708.69,707.41,0.72693571]
[1735762584357,0.916,708.69,707.98,1.05569966]
[1735762587457,0.916,708.69,708.02,1.05569966]
[1735762588759,0.916,708.69,708.07,1.05569966]
[1735762590162,0.916,708.69,708.21,1.05569966]
[1735762590963,0.916,708.69,708.23,1.05569966]
[1735762592361,1.061,708.68,708.24,1.05569966]
[1735762594365,1.061,708.68,708.25,1.05569966]
[1735762595260,1.061,708.68,708.22,1.05569966]
[1735762596769,1.061,708.68,707.53,2.15678442]
[1735762596770,1.061,708.68,708.23,1.05569966]
[1735762598565,1.061,708.68,708.24,1.05569966]
[1735762600268,1.061,708.68,708.27,1.05569966]
[1735762601273,1.061,708.68,708.32,1.05569966]
[1735762602171,1.061,708.68,708.33,1.05569966]
[1735762602867,1.061,708.68,708.35,1.05569966]
[1735762604165,1.061,708.68,708.36,1.05569966]
[1735762605176,1.061,708.68,708.37,1.05569966]
[1735762605567,0.918,708.67,708.37,1.05569966]
[1735762606577,0.918,708.67,708.34,1.05569966]
[1735762607577,0.918,708.67,708.35,1.05569966]
[1735762608678,0.918,708.67,708.36,1.05569966]
[1735762609979,0.918,708.67,708.34,1.05569966]
[1735762613380,0.918,708.67,708.29,1.05569966]
[1735762615483,0.918,708.67,708.07,1.0563842]
[1735762615484,0.918,708.67,708.28,1.05569966]
[1735762616578,1.092,708.66,708.27,1.05569966]
[1735762617382,1.092,708.66,708.15,1.05569966]
[1735762618586,1.092,708.66,708.12,1.05569966]
[1735762619788,1.092,708.66,708.05,1.05569966]
[1735762621286,1.092,708.66,708.02,1.05569966]
[1735762623488,1.092,708.66,708.03,1.05569966]
[1735762624590,1.092,708.66,708.02,1.05569966]
[1735762625788,1.092,708.66,708.01,1.05569966]
[1735762626986,1.092,708.66,707.98,1.05569966]
[1735762627584,0.918,708.67,707.97,1.05569966]
[1735762628487,0.918,708.67,707.87,1.05569966]
[1735762628886,0.914,708.66,707.87,1.05569966]
[1735762629591,0.914,708.66,707.85,1.05569966]
[1735762630693,0.914,708.66,707.84,1.05569966]
[1735762631788,1.028,708.65,707.84,1.05569966]
[1735762632188,1.028,708.65,707.81,1.05569966]
[1735762633193,1.028,708.65,707.48,1.0563842]
[1735762633194,1.028,708.65,707.8,1.05569966]
[1735762634491,1.028,708.65,707.17,2.15678442]
[1735762634492,1.028,708.65,707.79,1.05569966]
[1735762635496,1.028,708.65,707.75,1.05569966]
[1735762636293,1.028,708.65,707.74,1.05569966]
[1735762637399,1.028,708.65,707.71,1.05569966]
[1735762638601,1.028,708.65,707.65,1.05569966]
[1735762640099,1.028,708.65,707.06,2.15678442]
[1735762640100,1.028,708.65,707.59,1.05569966]
[1735762641295,0.25992723,708.64,707.5,1.05569966]
[1735762641497,1.028,708.65,707.5,1.05569966]
[1735762642302,1.028,708.65,707.52,1.05569966]
[1735762643300,1.028,708.65,707.45,1.05569966]
[1735762643501,0.25996041,708.64,707.45,1.05569966]
[1735762644502,0.25996041,708.64,707.36,1.05569966]
[1735762645602,0.25996041,708.64,707.25,1.05569966]
[1735762645796,0.28223075,708.64,707.25,1.05569966]
[1735762645996,0.25998339,708.63,707.25,1.05569966]
[1735762646597,0.28223075,708.64,707.25,1.05569966]
[1735762646598,1.73515878,708.62,707.25,1.05569966]
[1735762646796,1.73515878,708.62,706.63,2.15678442]
[1735762646797,0.26000953,708.61,707.21,1.05569966]
[1735762647897,0.26000953,708.61,707.09,1.05569966]
[1735762648407,1.47514925,708.62,707.09,1.05569966]
[1735762648703,0.2600201,708.61,707.09,1.05569966]
[1735762648899,0.2600201,708.61,707.13,1.05569966]
[1735762649095,0.28224668,708.6,707.13,1.05569966]
[1735762649399,0.2600201,708.59,707.13,1.05569966]
[1735762650103,0.2600201,708.59,707.1,1.05569966]
[1735762650802,0.28225465,708.58,707.1,1.05569966]
[1735762650995,0.2600201,708.57,707.05,1.05569966]
[1735762651599,0.28226261,708.56,707.05,1.05569966]
[1735762651795,0.2600201,708.55,707.05,1.05569966]
[1735762652001,0.28227058,708.54,707.05,1.05569966]
[1735762652300,0.2600201,708.53,707.07,1.05569966]
[1735762653403,0.2600201,708.53,707.05,1.05569966]
[1735762653698,0.26001125,708.52,707.05,1.05569966]
[1735762653902,0.28227058,708.54,707.05,1.05569966]
[1735762653903,0.26001125,708.51,707.05,1.05569966]
[1735762654203,0.26001125,708.5,707.08,1.05569966]
[1735762654403,0.26001147,708.49,707.08,1.05569966]
[1735762654603,0.26001147,708.48,707.08,1.05569966]
[1735762654803,0.26001147,708.47,707.08,1.05569966]
[1735762655004,0.26001147,708.46,707.08,1.05569966]
[1735762655197,0.26001147,708.45,707.08,1.05569966]
[1735762655395,0.28227058,708.54,707.08,1.05569966]
[1735762655396,0.26001147,708.44,707.08,1.05569966]
[1735762655601,0.26001147,708.43,707.08,1.05569966]
[1735762655801,0.26001147,708.42,707.08,1.05569966]
[1735762656002,0.28227058,708.54,707.08,1.05569966]
[1735762656203,0.26001202,708.53,707.05,1.05569966]
[1735762656402,0.5422905,708.52,707.05,1.05569966]
[1735762656601,0.54229448,708.51,707.05,1.05569966]
[1735762656798,0.26001195,708.5,707.05,1.05569966]
[1735762657498,0.26001195,708.5,706.44,2.15678442]
[1735762657499,0.26001195,708.5,707.03,1.05569966]
[1735762658105,0.784,708.49,707.03,1.05569966]
[1735762658403,0.26001195,708.48,707.04,1.05569966]
[1735762659002,1.05001962,708.47,707.04,1.05569966]
[1735762659304,0.26001962,708.46,707.04,1.05569966]
[1735762660005,0.79,708.47,707.04,1.05569966]
[1735762660507,0.79,708.47,707.1,1.05569966]
[1735762661905,0.79,708.47,707.12,1.05569966]
[1735762662901,0.26001138,708.46,707.12,1.05569966]
[1735762663809,0.26001138,708.46,707.13,1.05569966]
[1735762664307,0.26002819,708.45,707.13,1.05569966]
[1735762664508,0.26002819,708.44,707.13,1.05569966]
[1735762664708,0.26002819,708.43,707.13,1.05569966]
[1735762664910,0.26002819,708.43,706.9,1.0563842]
[1735762664911,0.26002819,708.42,707.1,1.05569966]
[1735762665107,0.26002819,708.41,707.1,1.05569966]
[1735762665307,0.79,708.47,707.1,1.05569966]
[1735762665508,0.26002041,708.46,707.1,1.05569966]
[1735762666107,0.26002041,708.46,707.16,1.05569966]
[1735762667313,0.26002041,708.46,707.19,1.05569966]
[1735762668314,0.2600319,708.45,707.19,1.05569966]
[1735762668508,0.2600319,708.45,706.56,2.15678442]
[1735762668509,0.2600319,708.46,707.18,1.05569966]
[1735762668710,0.2600319,708.45,707.18,1.05569966]
[1735762668912,0.2600319,708.44,707.18,1.05569966]
[1735762669111,0.2600319,708.43,707.18,1.05569966]
[1735762669313,0.2600319,708.42,707.18,1.05569966]
[1735762669518,0.2600319,708.42,706.53,2.15678442]
[1735762669519,1.47536814,708.42,707.2,1.05569966]
[1735762669718,0.2600304,708.41,707.2,1.05569966]
[1735762670219,1.47536814,708.42,707.2,1.05569966]
[1735762670416,0.26003206,708.41,707.2,1.05569966]
[1735762670622,0.26003206,708.41,707.26,1.05569966]
[1735762671615,0.26003206,708.41,707.29,1.05569966]
[1735762672418,0.26002498,708.4,707.29,1.05569966]
[1735762672622,0.26002498,708.4,706.82,1.26766104]
[1735762672623,0.26002498,708.39,707.32,1.05569966]
[1735762672821,0.26002498,708.38,707.32,1.05569966]
[1735762673022,0.26002498,708.37,707.32,1.05569966]
[1735762673223,0.763,708.36,707.32,1.05569966]
[1735762673723,0.763,708.36,706.74,2.15678442]
[1735762673724,0.763,708.36,707.38,1.05569966]
[1735762674725,0.763,708.36,707.43,1.05569966]
[1735762675626,0.763,708.36,707.46,1.05569966]
[1735762676226,1.029,708.35,707.46,1.05569966]
[1735762676725,1.029,708.35,707.48,1.05569966]
[1735762678028,1.029,708.35,707.03,1.26766104]
[1735762678029,1.029,708.35,707.52,1.05569966]
[1735762679027,1.029,708.35,707.62,1.05569966]
[1735762679632,0.26002533,708.34,707.62,1.05569966]
[1735762679832,1.73522669,708.34,707.62,1.05569966]
[1735762680034,1.47520136,708.34,707.61,1.05569966]
[1735762681132,1.47520136,708.34,707.1,0.726854]
[1735762681133,1.47520136,708.34,707.64,1.05569966]
[1735762682432,1.47520136,708.34,707.62,1.05569966]
[1735762683636,1.47520136,708.34,707.61,1.05569966]
[1735762684734,1.47520136,708.34,707.6,1.05569966]
[1735762685633,1.47520136,708.34,707.32,1.0563842]
[1735762685634,1.47520136,708.34,707.59,1.05569966]
[1735762686636,1.47520136,708.34,707.62,1.05569966]
[1735762688034,1.47520136,708.34,707.6,1.05569966]
[1735762688837,1.47520136,708.34,707.57,1.05569966]
[1735762690137,1.47520136,708.34,707.56,1.05569966]
[1735762692236,1.47520136,708.34,707.54,1.05569966]
[1735762693543,1.47520136,708.34,706.98,2.88363842]
[1735762693544,1.47520136,708.34,707.52,1.05569966]
[1735762694744,1.47520136,708.34,707.32,1.0563842]
[1735762694745,1.47520136,708.34,707.51,1.05569966]
[1735762694938,0.26004981,708.33,707.51,1.05569966]
[1735762695344,1.47520136,708.34,707.51,1.05569966]
[1735762695942,1.47520136,708.34,706.97,0.726854]
[1735762695943,1.47520136,708.34,707.49,1.05569966]
[1735762696843,1.47520136,708.34,707.52,1.05569966]
[1735762697043,0.26005402,708.33,707.52,1.05569966]
[1735762697544,0.971,708.32,707.52,1.05569966]
[1735762697846,0.971,708.32,707.5,1.05569966]
[1735762699946,0.971,708.32,707.49,1.05569966]
[1735762700745,0.26004445,708.31,707.49,1.05569966]
[1735762700945,0.26004445,708.31,707.52,1.05569966]
[1735762701340,0.26008152,708.3,707.52,1.05569966]
[1735762701541,0.26008152,708.29,707.52,1.05569966]
[1735762701743,0.26008152,708.28,707.52,1.05569966]
[1735762701943,0.971,708.32,707.52,1.05569966]
[1735762702141,0.26007862,708.31,707.52,1.05569966]
[1735762702347,0.26007862,708.31,707.34,1.05569966]
[1735762703146,0.26008411,708.3,707.34,1.05569966]
[1735762703346,0.26008411,708.29,707.34,1.05569966]
[1735762703540,0.26008411,708.28,707.34,1.05569966]
[1735762704848,1.109,708.29,707.34,1.05569966]
[1735762705945,1.109,708.29,707.32,1.05569966]
[1735762706848,1.109,708.29,707.34,1.05569966]
[1735762707849,1.109,708.29,707.33,1.05569966]
[1735762708949,1.109,708.29,707.25,1.05569966]
[1735762709748,1.109,708.29,706.7,1.26766104]
[1735762709749,1.109,708.29,707.26,1.05569966]
[1735762711050,1.109,708.29,707.25,1.05569966]
[1735762712151,1.109,708.29,706.7,1.26766104]
[1735762712152,1.109,708.29,707.24,1.05569966]
[1735762713351,0.26010295,708.28,707.22,1.05569966]
[1735762713550,1.109,708.29,707.22,1.05569966]
[1735762713951,0.26010797,708.28,707.22,1.05569966]
[1735762714149,0.26010797,708.28,707.17,1.05569966]
[1735762715253,0.26010797,708.28,707.14,1.05569966]
[1735762716253,0.26012384,708.27,707.13,1.05569966]
[1735762716453,0.26012384,708.26,707.13,1.05569966]
[1735762716752,0.26012384,708.25,707.13,1.05569966]
[1735762716954,1.73588301,708.25,707.13,1.05569966]
[1735762717149,0.26012384,708.24,707.13,1.05569966]
[1735762717356,0.26012384,708.24,707.15,1.05569966]
[1735762718456,0.26012384,708.24,707.1,1.05569966]
[1735762718849,1.47575917,708.25,707.1,1.05569966]
[1735762719057,0.26014516,708.24,707.1,1.05569966]
[1735762719250,0.28239413,708.23,707.1,1.05569966]
[1735762719455,0.26014516,708.22,707.1,1.05569966]
[1735762719655,0.26014516,708.22,707.06,1.05569966]
[1735762720755,0.26014516,708.22,707.07,1.05569966]
[1735762723161,0.26014516,708.22,706.57,1.26766104]
[1735762723162,0.26014516,708.22,707.09,1.05569966]
[1735762724756,0.54255002,708.21,707.09,1.05569966]
[1735762724957,0.542554,708.2,707.09,1.05569966]
[1735762725157,0.54255799,708.19,707.06,1.05569966]
[1735762725361,0.26014791,708.18,707.06,1.05569966]
[1735762725761,1.073,708.17,707.06,1.05569966]
[1735762725959,0.26014791,708.16,707.06,1.05569966]
[1735762726360,0.26014791,708.16,707.12,1.05569966]
[1735762726855,0.26013228,708.15,707.12,1.05569966]
[1735762727058,0.26013228,708.14,707.12,1.05569966]
[1735762727460,0.26013228,708.14,707.13,1.05569966]
[1735762728361,1.47587913,708.15,707.11,1.05569966]
[1735762728556,0.26012836,708.14,707.11,1.05569966]
[1735762729558,0.26012836,708.14,707.13,1.05569966]
[1735762730658,0.26012836,708.14,706.95,1.0563842]
[1735762730659,0.26012836,708.14,707.14,1.05569966]
[1735762730859,1.47587913,708.15,707.14,1.05569966]
[1735762731759,1.47587913,708.15,707.21,1.05569966]
[1735762733161,1.47587913,708.15,707.24,1.05569966]
[1735762734668,1.47587913,708.15,706.72,1.26766104]
[1735762734669,1.47587913,708.15,707.29,1.05569966]
[1735762736068,1.47587913,708.15,707.3,1.05569966]
[1735762737267,1.47587913,708.15,707.33,1.05569966]
[1735762738067,1.024,708.14,707.33,1.05569966]